fUSD/lending_fUSD_20240328
["ID","MTS","AMOUNT","RATE_DAILY","PERIOD"]
[320884896,1711665047442,-500.0,0.00049315,120]
[320884897,1711665047452,-504.4797832,0.00049315,120]
[320884898,1711665047461,-531.68,0.00049315,120]
[320884899,1711665047471,-500.0,0.00049315,7]
[320884900,1711665047481,-500.0,0.00049315,120]
[320884901,1711665047491,-523.94,0.00049315,120]
[320884902,1711665047501,-500.0,0.00049315,120]
[320884903,1711665047511,-500.0,0.00049315,120]
[320884904,1711665047520,-1437.28,0.00049315,120]
[320884905,1711665047530,-500.0,0.00049315,120]
[320884906,1711665047540,-199.35234891,0.00049315,120]
[320884907,1711665047550,-500.0,0.00049315,120]
[320884908,1711665047560,-500.0,0.00049315,120]
[320884909,1711665047570,-1519.15,0.00049315,120]
[320884910,1711665047579,-500.0,0.00049315,120]
[320884911,1711665047589,-1228.49,0.00049315,120]
[320884912,1711665047599,-500.0,0.00049315,120]
[320884913,1711665047610,-915.61,0.00049315,120]
[320884914,1711665047620,-510.87969316,0.00049315,120]
[320884915,1711665047629,-500.0,0.00049315,65]
[320884916,1711665047640,-500.0,0.00049315,120]
[320884917,1711665047652,-500.0,0.00049315,120]
[320884918,1711665047661,-500.0,0.00049315,120]
[320884919,1711665047671,-500.0,0.00049315,120]
[320884920,1711665047680,-500.0,0.00049315,120]
[320884921,1711665047690,-500.0,0.00049315,120]
[320884922,1711665047700,-505.06358911,0.00049315,120]
[320884923,1711665047713,-505.45,0.00049315,120]
[320884924,1711665047722,-1410.16,0.00049315,120]
[320884925,1711665047732,-500.0,0.00049315,120]
[320884926,1711665047742,-500.0,0.00049315,120]
[320884927,1711665047753,-854.8,0.00049315,120]
[320884928,1711665047763,-500.0,0.00049315,120]
[320884929,1711665047773,-500.0,0.00049315,120]
[320884930,1711665047783,-500.0,0.00049315,120]
[320884931,1711665047793,-11247.68,0.00049315,120]
[320884932,1711665047803,-500.0,0.00049315,120]
[320884933,1711665047813,-7400.25,0.00049315,120]
[320884934,1711665047823,-500.0,0.00049315,120]
[320884935,1711665047833,-646.27,0.00049315,120]
[320884936,1711665047843,-500.0,0.00049315,120]
[320884937,1711665047854,-500.0,0.00049315,120]
[320884938,1711665047863,-506.15589208,0.00049315,120]
[320884939,1711665047873,-500.0,0.00049315,120]
[320884940,1711665047884,-1025.19,0.00049315,120]
[320884941,1711665047893,-1216.32,0.00049315,120]
[320884942,1711665047903,-512.94,0.00049315,120]
[320884943,1711665047913,-750.82,0.00049315,120]
[320884944,1711665047923,-1040.33,0.00049315,120]
[320884945,1711665047933,-500.0,0.00049315,120]
[320884946,1711665047943,-513.16280133,0.00049315,120]
[320884947,1711665047953,-553.38,0.00049315,120]
[320884948,1711665047962,-500.0,0.00049315,120]
[320884949,1711665047972,-500.0,0.00049315,120]
[320884950,1711665047981,-500.0,0.00049315,120]
[320884951,1711665047990,-500.0,0.00049315,120]
[320884952,1711665048000,-500.91,0.00049315,120]
[320884953,1711665048068,-500.0,0.00049315,120]
[320884954,1711665048078,-506.50864297,0.00049315,120]
[320884955,1711665048088,-500.0,0.00049315,120]
[320884956,1711665048098,-1147.38,0.00049315,120]
[320884957,1711665048107,-1236.42,0.00049315,120]
[320884958,1711665048117,-500.0,0.00049315,120]
[320884959,1711665048126,-500.0,0.00049315,120]
[320884960,1711665048136,-500.0,0.00049315,120]
[320884961,1711665048146,-1517.12,0.00049315,120]
[320884962,1711665048155,-1223.0,0.00049315,120]
[320884963,1711665048165,-500.0,0.00049315,120]
[320884964,1711665048175,-1464.62,0.00049315,120]
[320884965,1711665048185,-500.0,0.00049315,120]
[320884966,1711665048195,-500.0,0.00049315,120]
[320884967,1711665048205,-500.0,0.00049315,120]
[320884968,1711665048215,-500.0,0.00049315,120]
[320884969,1711665048226,-500.0,0.00049315,120]
[320884970,1711665048235,-500.0,0.00049315,120]
[320884971,1711665048246,-500.0,0.00049315,120]
[320884972,1711665048255,-746.51,0.00049315,120]
[320884973,1711665048265,-500.0,0.00049315,120]
[320884974,1711665048275,-945.77,0.00049315,120]
[320884975,1711665048284,-500.0,0.00049315,120]
[320884976,1711665048293,-500.0,0.00049315,120]
[320884977,1711665048303,-500.0,0.00049315,120]
[320884978,1711665048313,-500.0,0.00049315,120]
[320884979,1711665048323,-500.0,0.00049315,120]
[320884980,1711665048332,-1913.45,0.00049315,120]
[320884981,1711665048342,-918.65,0.00049315,120]
[320884982,1711665048351,-500.0,0.00049315,120]
[320884983,1711665048361,-900.64,0.00049315,120]
[320884984,1711665048371,-626.77,0.00049315,120]
[320884985,1711665048381,-782.99,0.00049315,120]
[320884986,1711665048391,-500.0,0.00049315,120]
[320884987,1711665048400,-1427.67,0.00049315,120]
[320884988,1711665048410,-500.0,0.00049315,120]
[320884989,1711665048419,-500.0,0.00049315,120]
[320884990,1711665048429,-500.0,0.00049315,120]
[320884991,1711665048439,-1454.01,0.00049315,21]
[320884992,1711665048448,-500.0,0.00049315,120]
[320884993,1711665048458,-500.0,0.00049315,120]
[320884994,1711665048469,-657.71,0.00049315,120]
[320884995,1711665048478,-500.0,0.00049315,120]
[320884996,1711665048487,-500.0,0.00049315,80]
[320884997,1711665048497,-837.03,0.00049315,120]
[320884998,1711665048506,-500.0,0.00049315,120]
[320884999,1711665048516,-500.0,0.00049315,120]
[320885000,1711665048525,-500.0,0.00049315,120]
[320885001,1711665048535,-500.0,0.00049315,120]
[320885002,1711665048544,-528.87,0.00049315,120]
[320885003,1711665048553,-1129.46,0.00049315,120]
[320885004,1711665048562,-500.0,0.00049315,120]
[320885005,1711665048572,-500.0,0.00049315,120]
[320885006,1711665048581,-219.81,0.00049315,120]
[320885007,1711665048590,-500.0,0.00049315,120]
[320885008,1711665048600,-500.0,0.00049315,120]
[320885009,1711665048609,-500.0,0.00049315,120]
[320885010,1711665048619,-3498.0,0.00049315,120]
[320885011,1711665048628,-500.0,0.00049315,120]
[320885012,1711665048638,-1420.31,0.00049315,120]
[320885013,1711665048647,-500.0,0.00049315,120]
[320885014,1711665048657,-1455.1,0.00049315,120]
[320885015,1711665048666,-500.0,0.00049315,120]
[320885016,1711665048676,-541.81,0.00049315,120]
[320885017,1711665048686,-500.0,0.00049315,120]
[320885018,1711665048695,-698.59,0.00049315,120]
[320885019,1711665048709,-500.0,0.00049315,120]
[320885020,1711665048720,-1015.71,0.00049315,120]
[320885021,1711665048730,-500.0,0.00049315,120]
[320885022,1711665048740,-500.0,0.00049315,120]
[320885023,1711665048921,-500.0,0.00049315,120]
[320885024,1711665048932,-500.0,0.00049315,120]
[320885025,1711665048942,-500.0,0.00049315,120]
[320885026,1711665048952,-504.06125272,0.00049315,120]
[320885027,1711665048962,-500.0,0.00049315,120]
[320885028,1711665048972,-500.0,0.00049315,120]
[320885029,1711665048982,-500.0,0.00049315,120]
[320885030,1711665048991,-500.0,0.00049315,120]
[320885031,1711665049000,-500.0,0.00049315,120]
[320885032,1711665049009,-500.0,0.00049315,120]
[320885033,1711665049018,-500.0,0.00049315,120]
[320885034,1711665049027,-1189.37,0.00049315,120]
[320885035,1711665049037,-500.0,0.00049315,120]
[320885036,1711665049046,-5622.54,0.00049315,120]
[320885037,1711665049055,-500.0,0.00049315,120]
[320885038,1711665049064,-500.0,0.00049315,120]
[320885039,1711665049073,-4730.23,0.00049315,120]
[320885040,1711665049083,-918.14,0.00049315,120]
[320885041,1711665049092,-500.0,0.00049315,120]
[320885042,1711665049101,-500.0,0.00049315,120]
[320885043,1711665049110,-500.0,0.00049315,120]
[320885044,1711665049120,-595.53,0.00049315,120]
[320885045,1711665049129,-926.93,0.00049315,120]
[320885046,1711665049138,-990.52,0.00049315,120]
[320885047,1711665049147,-670.59,0.00049315,120]
[320885048,1711665049158,-1283.01,0.00049315,120]
[320885049,1711665049167,-1951.48,0.00049315,120]
[320885050,1711665049177,-500.0,0.00049315,120]
[320885051,1711665049187,-1620.84,0.00049315,120]
[320885052,1711665049198,-500.0,0.00049315,120]
[320885053,1711665049208,-2941.99,0.00049315,120]
[320885054,1711665049222,-1181.83,0.00049315,120]
[320885055,1711665049232,-500.0,0.00049315,120]
[320885056,1711665049241,-1172.19,0.00049315,120]
[320885057,1711665049254,-500.0,0.00049315,120]
[320885058,1711665049264,-3245.99,0.00049315,120]
[320885059,1711665049275,-500.0,0.00049315,120]
[320885060,1711665049285,-1454.64,0.00049315,120]
[320885061,1711665049296,-500.0,0.00049315,120]
[320885062,1711665049308,-508.61066744,0.00049315,120]
[320885063,1711665049319,-500.0,0.00049315,120]
[320885064,1711665049330,-500.0,0.00049315,120]
[320885065,1711665049340,-500.0,0.00049315,120]
[320885066,1711665049352,-500.0,0.00049315,120]
[320885067,1711665049362,-500.0,0.00049315,120]
[320885068,1711665049373,-500.0,0.00049315,120]
[320885069,1711665049383,-4280.82,0.00049315,120]
[320885070,1711665049395,-2013.86,0.00049315,120]
[320885071,1711665049405,-500.0,0.00049315,120]
[320885072,1711665049416,-931.2,0.00049315,120]
[320885073,1711665049427,-336.48,0.00049315,120]
[320885074,1711665049438,-500.0,0.00049315,120]
[320885075,1711665049449,-500.0,0.00049315,120]
[320885076,1711665049458,-500.0,0.00049315,120]
[320885077,1711665049469,-500.0,0.00049315,120]
[320885078,1711665049479,-1429.13,0.00049315,120]
[320885079,1711665049489,-968.39,0.00049315,120]
[320885080,1711665049499,-500.0,0.00049315,120]
[320885081,1711665049509,-500.0,0.00049315,120]
[320885082,1711665049522,-500.0,0.00049315,120]
[320885083,1711665049532,-500.0,0.00049315,120]
[320885084,1711665049541,-500.0,0.00049315,120]
[320885085,1711665049551,-500.0,0.00049315,120]
[320885086,1711665049562,-500.0,0.00049315,120]
[320885087,1711665049572,-500.0,0.00049315,120]
[320885088,1711665049582,-1032.01,0.00049315,120]
[320885089,1711665049592,-1380.24,0.00049315,120]
[320885090,1711665049602,-653.61,0.00049315,120]
[320885091,1711665049613,-1508.81,0.00049315,120]
[320885092,1711665049624,-500.0,0.00049315,120]
[320885093,1711665049634,-500.0,0.00049315,120]
[320885094,1711665049644,-2510.65,0.00049315,120]
[320885095,1711665049654,-500.0,0.00049315,60]
[320885096,1711665049664,-500.0,0.00049315,120]
[320885097,1711665049674,-500.0,0.00049315,120]
[320885098,1711665049684,-500.0,0.00049315,120]
[320885099,1711665049695,-1065.89,0.00049315,120]
[320885100,1711665049710,-1023.43,0.00049315,120]
[320885101,1711665049726,-500.0,0.00049315,120]
[320885102,1711665049737,-500.0,0.00049315,120]
[320885103,1711665049750,-1879.67,0.00049315,120]
[320885104,1711665049761,-1070.3,0.00049315,120]
[320885105,1711665049771,-695.04,0.00049315,120]
[320885106,1711665049782,-500.0,0.00049315,120]
[320885107,1711665049790,-496.82634992,0.00049315,2]
[320885108,1711665049800,-926.67,0.00049315,120]
[320885109,1711665049809,-500.0,0.00049315,120]
[320885110,1711665049819,-500.0,0.00049315,120]
[320885111,1711665049830,-500.0,0.00049315,120]
[320885112,1711665049839,-500.0,0.00049315,120]
[320885113,1711665049848,-500.0,0.00049315,120]
[320885114,1711665049857,-500.0,0.00049315,120]
[320885115,1711665049869,-1108.88,0.00049315,120]
[320885116,1711665049880,-500.0,0.00049315,120]
[320885117,1711665049890,-3172.21,0.00049315,120]
[320885118,1711665049899,-500.0,0.00049315,120]
[320885119,1711665049908,-1071.01,0.00049315,120]
[320885120,1711665049917,-1046.04,0.00049315,120]
[320885121,1711665049927,-1172.74,0.00049315,120]
[320885122,1711665049937,-994.32,0.00049315,120]
[320885123,1711665049947,-504.61041729,0.00049315,120]
[320885124,1711665049957,-500.0,0.00049315,120]
[320885125,1711665049969,-500.0,0.00049315,120]
[320885126,1711665049978,-500.0,0.00049315,120]
[320885127,1711665049989,-500.0,0.00049315,120]
[320885128,1711665049999,-500.0,0.00049315,2]
[320885129,1711665050009,-1015.93,0.00049315,120]
[320885130,1711665050021,-500.0,0.00049315,120]
[320885131,1711665050031,-500.0,0.00049315,120]
[320885132,1711665050040,-500.0,0.00049315,120]
[320885133,1711665050050,-271.25,0.00049315,120]
[320885134,1711665050060,-500.0,0.00049315,120]
[320885135,1711665050070,-500.0,0.00049315,120]
[320885136,1711665050080,-758.1,0.00049315,120]
[320885137,1711665050089,-500.0,0.00049315,120]
[320885138,1711665050099,-500.0,0.00049315,120]
[320885139,1711665050109,-1318.87,0.00049315,120]
[320885140,1711665050120,-797.78,0.00049315,120]
[320885141,1711665050130,-500.0,0.00049315,120]
[320885142,1711665050140,-1105.32,0.00049315,120]
[320885143,1711665050150,-500.0,0.00049315,120]
[320885144,1711665050160,-294.45858966,0.00049315,120]
[320885145,1711665050170,-2181.31,0.00049315,120]
[320885146,1711665050180,-500.0,0.00049315,120]
[320885147,1711665050190,-500.0,0.00049315,120]
[320885148,1711665050200,-733.01,0.00049315,120]
[320885149,1711665050210,-500.0,0.00049315,120]
[320885150,1711665050220,-500.0,0.00049315,120]
[320885151,1711665050229,-500.0,0.00049315,120]
[320885152,1711665050238,-500.0,0.00049315,120]
[320885153,1711665050247,-500.0,0.00049315,120]
[320885154,1711665050257,-500.0,0.00049315,120]
[320885155,1711665050267,-621.33,0.00049315,120]
[320885156,1711665050277,-500.0,0.00049315,120]
[320885157,1711665050286,-500.0,0.00049315,120]
[320885158,1711665050296,-500.0,0.00049315,120]
[320885159,1711665050307,-500.0,0.00049315,120]
[320885160,1711665050317,-500.0,0.00049315,120]
[320885161,1711665050326,-2689.25,0.00049315,120]
[320885162,1711665050336,-500.0,0.00049315,120]
[320885163,1711665050346,-500.0,0.00049315,120]
[320885164,1711665050356,-500.0,0.00049315,120]
[320885165,1711665050366,-500.8895538,0.00049315,120]
[320885166,1711665050376,-500.0,0.00049315,120]
[320885167,1711665050387,-1000.0,0.00049315,120]
[320885168,1711665050396,-1000.0,0.00049315,120]
[320885169,1711665050406,-1000.0,0.00049315,120]
[320885170,1711665050415,-1000.0,0.00049315,120]
[320885171,1711665050426,-1000.0,0.00049315,120]
[320885172,1711665050435,-151.474168,0.00049315,120]
[320885173,1711665050446,-151.963109,0.00049315,120]
[320885174,1711665050456,-151.0,0.00049315,120]
[320885175,1711665050467,-285.549847,0.00049315,120]
[320885176,1711665050476,-187.539106,0.00049315,120]
[320885177,1711665050486,-151.0,0.00049315,120]
[320885178,1711665050495,-151.0,0.00049315,120]
[320885179,1711665050506,-151.0,0.00049315,120]
[320885180,1711665050515,-151.0,0.00049315,120]
[320885181,1711665050525,-151.0,0.00049315,120]
[320885182,1711665050535,-151.0,0.00049315,7]
[320885183,1711665050546,-151.0,0.00049315,120]
[320885184,1711665050556,-151.0,0.00049315,120]
[320885185,1711665050567,-151.0,0.00049315,120]
[320885186,1711665050578,-151.0,0.00049315,120]
[320885187,1711665050588,-151.0,0.00049315,120]
[320885188,1711665050599,-151.0,0.00049315,14]
[320885189,1711665050609,-151.0,0.00049315,14]
[320885190,1711665050618,-151.0,0.00049315,14]
[320885191,1711665050628,-151.0,0.00049315,120]
[320885192,1711665050639,-151.0,0.00049315,120]
[320885193,1711665050649,-151.0,0.00049315,120]
[320885194,1711665050660,-151.449003,0.00049315,120]
[320885195,1711665050671,-151.0,0.00049315,120]
[320885196,1711665050681,-151.0,0.00049315,120]
[320885197,1711665050691,-205.868362,0.00049315,120]
[320885198,1711665050702,-151.683422,0.00049315,120]
[320885199,1711665050718,-151.0,0.00049315,120]
[320885200,1711665050728,-151.0,0.00049315,120]
[320885201,1711665050738,-151.0,0.00049315,120]
[320885202,1711665050747,-151.0,0.00049315,120]
[320885203,1711665050758,-151.0,0.00049315,30]
[320885204,1711665050767,-151.0,0.00049315,30]
[320885205,1711665050776,-151.0,0.00049315,30]
[320885206,1711665050786,-151.388893,0.00049315,120]
[320885207,1711665050796,-151.0,0.00049315,120]
[320885208,1711665050807,-154.578903,0.00049315,120]
[320885209,1711665050816,-151.0,0.00049315,120]
[320885210,1711665050825,-151.0,0.00049315,120]
[320885211,1711665050836,-151.0,0.00049315,120]
[320885212,1711665050847,-151.0,0.00049315,120]
[320885213,1711665050856,-151.0,0.00049315,120]
[320885214,1711665050867,-151.0,0.00049315,120]
[320885215,1711665050878,-151.0,0.00049315,120]
[320885216,1711665050889,-153.193052,0.00049315,120]
[320885217,1711665050899,-151.404072,0.00049315,21]
[320885218,1711665050909,-151.465155,0.00049315,3]
[320885219,1711665050919,-151.533068,0.00049315,120]
[320885220,1711665050929,-151.0,0.00049315,120]
[320885221,1711665050938,-151.0,0.00049315,120]
[320885222,1711665050949,-151.0,0.00049315,120]
[320885223,1711665050958,-151.0,0.00049315,120]
[320885224,1711665050968,-151.0,0.00049315,120]
[320885225,1711665050978,-151.0,0.00049315,120]
[320885226,1711665050988,-151.0,0.00049315,120]
[320885227,1711665050998,-151.0,0.00049315,120]
[320885228,1711665051009,-152.365264,0.00049315,120]
[320885229,1711665051019,-151.0,0.00049315,120]
[320885230,1711665051029,-151.0,0.00049315,120]
[320885231,1711665051038,-151.0,0.00049315,120]
[320885232,1711665051048,-151.0,0.00049315,7]
[320885233,1711665051059,-151.0,0.00049315,7]
[320885234,1711665051069,-151.0,0.00049315,120]
[320885235,1711665051081,-151.0,0.00049315,120]
[320885236,1711665051091,-151.0,0.00049315,120]
[320885237,1711665051102,-151.0,0.00049315,120]
[320885238,1711665051112,-151.0,0.00049315,120]
[320885239,1711665051122,-151.0,0.00049315,120]
[320885240,1711665051133,-151.0,0.00049315,120]
[320885241,1711665051143,-151.0,0.00049315,120]
[320885242,1711665051152,-151.0,0.00049315,120]
[320885243,1711665051162,-151.0,0.00049315,120]
[320885244,1711665051172,-151.0,0.00049315,120]
[320885245,1711665051183,-151.0,0.00049315,120]
[320885246,1711665051194,-151.0,0.00049315,120]
[320885247,1711665051205,-151.0,0.00049315,120]
[320885248,1711665051216,-151.0,0.00049315,120]
[320885249,1711665051227,-152.274438,0.00049315,120]
[320885250,1711665051237,-402.12512,0.00049315,60]
[320885251,1711665051247,-402.12512,0.00049315,60]
[320885252,1711665051256,-402.12512,0.00049315,60]
[320885253,1711665051266,-402.12512,0.00049315,60]
[320885254,1711665051276,-402.12512,0.00049315,60]
[320885255,1711665051286,-402.12512,0.00049315,60]
[320885256,1711665051297,-152.428003,0.00049315,120]
[320885257,1711665051308,-151.0,0.00049315,120]
[320885258,1711665051319,-151.0,0.00049315,120]
[320885259,1711665051330,-151.0,0.00049315,120]
[320885260,1711665051340,-151.0,0.00049315,120]
[320885261,1711665051350,-151.0,0.00049315,120]
[320885262,1711665051359,-151.0,0.00049315,120]
[320885263,1711665051369,-151.0,0.00049315,60]
[320885264,1711665051378,-151.0,0.00049315,60]
[320885265,1711665051387,-151.0,0.00049315,120]
[320885266,1711665051396,-289.732937,0.00049315,60]
[320885267,1711665051406,-151.0,0.00049315,120]
[320885268,1711665051416,-151.0,0.00049315,120]
[320885269,1711665051427,-151.0,0.00049315,120]
[320885270,1711665051436,-151.0,0.00049315,120]
[320885271,1711665051445,-151.0,0.00049315,120]
[320885272,1711665051455,-151.0,0.00049315,120]
[320885273,1711665051466,-151.0,0.00049315,120]
[320885274,1711665051477,-151.0,0.00049315,120]
[320885275,1711665051487,-151.0,0.00049315,120]
[320885276,1711665051497,-151.0,0.00049315,120]
[320885277,1711665051507,-151.0,0.00049315,120]
[320885278,1711665051519,-152.216291,0.00049315,120]
[320885279,1711665051529,-151.0,0.00049315,120]
[320885280,1711665051540,-151.0,0.00049315,120]
[320885281,1711665051551,-151.0,0.00049315,120]
[320885282,1711665051560,-153.378094,0.00049315,120]
[320885283,1711665051570,-152.362682,0.00049315,120]
[320885284,1711665051579,-151.0,0.00049315,120]
[320885285,1711665051589,-151.0,0.00049315,120]
[320885286,1711665051598,-262.73793,0.00049315,120]
[320885287,1711665051609,-152.255297,0.00049315,120]
[320885288,1711665051619,-151.469716,0.00049315,120]
[320885289,1711665051629,-151.0,0.00049315,120]
[320885290,1711665051638,-151.0,0.00049315,120]
[320885291,1711665051648,-364.874751,0.00049315,120]
[320885292,1711665051659,-364.874751,0.00049315,120]
[320885293,1711665051669,-364.874751,0.00049315,120]
[320885294,1711665051680,-364.874751,0.00049315,120]
[320885295,1711665051690,-364.874751,0.00049315,120]
[320885296,1711665051700,-364.874751,0.00049315,120]
[320885297,1711665051712,-364.874751,0.00049315,120]
[320885298,1711665051723,-364.874751,0.00049315,120]
[320885299,1711665051733,-151.0,0.00049315,120]
[320885300,1711665051744,-151.0,0.00049315,120]
[320885301,1711665051755,-151.0,0.00049315,120]
[320885302,1711665051766,-151.0,0.00049315,120]
[320885303,1711665051777,-364.388118,0.00049315,120]
[320885304,1711665051788,-364.388118,0.00049315,120]
[320885305,1711665051798,-364.388118,0.00049315,120]
[320885306,1711665051807,-364.388118,0.00049315,120]
[320885307,1711665051816,-151.0,0.00049315,120]
[320885308,1711665051826,-151.0,0.00049315,120]
[320885309,1711665051836,-364.388118,0.00049315,120]
[320885310,1711665051847,-151.0,0.00049315,120]
[320885311,1711665051858,-364.388118,0.00049315,120]
[320885312,1711665051869,-364.388118,0.00049315,120]
[320885313,1711665051879,-364.388118,0.00049315,120]
[320885314,1711665051890,-151.0,0.00049315,120]
[320885315,1711665051899,-151.0,0.00049315,120]
[320885316,1711665051907,-151.0,0.00049315,120]
[320885317,1711665051917,-151.0,0.00049315,120]
[320885318,1711665051927,-155.644449,0.00049315,120]
[320885319,1711665051936,-151.0,0.00049315,120]
[320885320,1711665051946,-151.0,0.00049315,120]
[320885321,1711665051955,-151.0,0.00049315,120]
[320885322,1711665051965,-151.0,0.00049315,120]
[320885323,1711665051975,-151.0,0.00049315,120]
[320885324,1711665051985,-151.0,0.00049315,120]
[320885325,1711665051995,-151.935394,0.00049315,120]
[320885326,1711665052004,-151.0,0.00049315,120]
[320885327,1711665052013,-151.0,0.00049315,120]
[320885328,1711665052023,-151.0,0.00049315,120]
[320885329,1711665052033,-151.0,0.00049315,120]
[320885330,1711665052042,-151.0,0.00049315,120]
[320885331,1711665052052,-151.0,0.00049315,120]
[320885332,1711665052061,-151.0,0.00049315,120]
[320885333,1711665052070,-151.0,0.00049315,120]
[320885334,1711665052081,-222.197088,0.00049315,120]
[320885335,1711665052091,-151.0,0.00049315,120]
[320885336,1711665052102,-151.0,0.00049315,120]
[320885337,1711665052111,-151.0,0.00049315,120]
[320885338,1711665052121,-151.0,0.00049315,120]
[320885339,1711665052130,-151.0,0.00049315,120]
[320885340,1711665052140,-151.0,0.00049315,120]
[320885341,1711665052150,-151.0,0.00049315,120]
[320885342,1711665052159,-151.0,0.00049315,120]
[320885343,1711665052168,-151.0,0.00049315,120]
[320885344,1711665052178,-151.0,0.00049315,7]
[320885345,1711665052187,-151.0,0.00049315,7]
[320885346,1711665052196,-154.529523,0.00049315,7]
[320885347,1711665052205,-151.0,0.00049315,120]
[320885348,1711665052215,-151.0,0.00049315,120]
[320885349,1711665052225,-151.0,0.00049315,120]
[320885350,1711665052234,-151.0,0.00049315,120]
[320885351,1711665052243,-151.0,0.00049315,120]
[320885352,1711665052252,-151.549381,0.00049315,120]
[320885353,1711665052262,-152.720302,0.00049315,30]
[320885354,1711665052274,-155.143011,0.00049315,120]
[320885355,1711665052284,-151.0,0.00049315,120]
[320885356,1711665052294,-151.0,0.00049315,120]
[320885357,1711665052302,-151.0,0.00049315,120]
[320885358,1711665052311,-151.0,0.00049315,120]
[320885359,1711665052320,-151.0,0.00049315,120]
[320885360,1711665052329,-151.0,0.00049315,120]
[320885361,1711665052339,-151.0,0.00049315,120]
[320885362,1711665052351,-151.0,0.00049315,120]
[320885363,1711665052362,-152.679113,0.00049315,60]
[320885364,1711665052372,-151.0,0.00049315,30]
[320885365,1711665052382,-151.0,0.00049315,30]
[320885366,1711665052394,-151.0,0.00049315,30]
[320885367,1711665052404,-151.0,0.00049315,30]
[320885368,1711665052413,-152.492505,0.00049315,120]
[320885369,1711665052424,-213.302849,0.00049315,120]
[320885370,1711665052434,-213.302849,0.00049315,120]
[320885371,1711665052445,-213.302849,0.00049315,120]
[320885372,1711665052456,-213.302849,0.00049315,120]
[320885373,1711665052468,-151.0,0.0004933,120]
[320885374,1711665052478,-151.0,0.0004933,14]
[320885375,1711665052488,-151.0,0.0004933,120]
[320885376,1711665052498,-151.0,0.00049331,120]
[320885377,1711665052668,-151.0,0.00049331,120]
[320885378,1711665052679,-151.0,0.00049331,120]
[320885379,1711665052689,-269.992806,0.00049331,120]
[320885380,1711665052699,-151.0,0.00049331,120]
[320885381,1711665052711,-151.0,0.00049331,120]
[320885382,1711665052722,-151.0,0.00049331,120]
[320885383,1711665052733,-402.12512,0.00049331,60]
[320885384,1711665052743,-402.12512,0.00049331,60]
[320885385,1711665052754,-186.599818,0.00049331,120]
[320885386,1711665052765,-151.0,0.00049331,120]
[320885387,1711665052776,-364.874751,0.00049331,120]
[320885388,1711665052787,-364.874751,0.00049331,120]
[320885389,1711665052797,-364.388118,0.00049331,120]
[320885390,1711665052807,-364.388118,0.00049331,120]
[320885391,1711665052817,-151.0,0.00049331,120]
[320885392,1711665052826,-151.0,0.00049331,120]
[320885393,1711665052836,-151.0,0.00049331,120]
[320885394,1711665052846,-151.0,0.00049331,120]
[320885395,1711665052858,-7503.3727596,0.00049366,2]